fUST/lending_fUST_20241119
["ID","MTS","AMOUNT","RATE_DAILY","PERIOD"]
[342643969,1732024238635,-151.0,0.00018629,2]
[342643971,1732024238644,-356.62534,0.00018629,2]
[342643973,1732024238653,-356.62534,0.00018629,2]
[342643975,1732024238663,-9390.34825063,0.00018928,2]
[342643977,1732024238672,-160.118326,0.00019178,2]
[342643978,1732024238681,-9390.34825063,0.00019227,2]
[342643980,1732024238690,-871.72628145,0.00019227,2]
[342643982,1732024238700,-266.30422036,0.00019241,2]
[342643984,1732024238710,-500.0,0.00019241,2]
[342643986,1732024238719,-500.0,0.00019241,2]
[342643988,1732024238729,-500.0,0.00019241,2]
[342643990,1732024238740,-500.0,0.00019241,2]
[342643992,1732024238749,-500.0,0.00019241,2]
[342643994,1732024238759,-500.0,0.00019241,2]
[342643996,1732024238768,-500.0,0.00019241,2]
[342643998,1732024238782,-500.0,0.00019241,2]
[342643999,1732024238791,-500.0,0.00019241,2]
[342644001,1732024238800,-500.0,0.00019241,2]
[342644003,1732024238809,-500.0,0.00019241,2]
[342644005,1732024238818,-500.0,0.00019241,2]
[342644006,1732024238830,-325.86338294,0.00019241,2]
[342644007,1732024238839,-500.0,0.00019241,2]
[342644008,1732024238848,-502.73764359,0.00019241,2]
[342644009,1732024238857,-500.0,0.00019241,2]
[342644010,1732024238866,-500.0,0.00019241,2]
[342644011,1732024238875,-500.0,0.00019241,2]
[342644012,1732024238884,-500.0,0.00019241,2]
[342644013,1732024238893,-287.48237874,0.00019241,2]
[342644014,1732024238903,-500.0,0.00019241,2]
[342644015,1732024238912,-65.33745792,0.00019241,2]
[342644016,1732024238924,-313.095992,0.00019241,2]
[342644017,1732024239018,-121.56655008,0.00019241,2]
[342644018,1732024239031,-500.0,0.00019241,2]
[342644019,1732024239040,-500.0,0.00019241,2]
[342644020,1732024239049,-500.0,0.00019241,2]
[342644021,1732024239059,-265.57055407,0.00019241,2]
[342644421,1732024243287,-7015.625,0.00018,2]
[342644423,1732024243297,-234.42944593,0.00019241,2]
[342644425,1732024243307,-500.0,0.00019241,2]
[342644427,1732024243317,-500.0,0.00019241,2]
[342644429,1732024243326,-420.0,0.00019396,2]
[342644431,1732024243335,-420.0,0.00019549,2]
[342644433,1732024243345,-9390.34825063,0.000196,2]
[342644435,1732024243354,-6696.00244516,0.00019813,2]
[342644737,1732024246231,-889.40372416,0.00019813,2]
[342644740,1732024246245,-1804.94208133,0.00019813,2]
[342644742,1732024246255,-255.771916,0.0001999,2]
[342644744,1732024246267,-151.0,0.0001999,2]
[342644746,1732024246277,-151.0,0.0001999,2]
[342644748,1732024246290,-212.325789,0.0001999,2]
[342644750,1732024246300,-212.325789,0.0001999,2]
[342644752,1732024246310,-212.325789,0.0001999,2]
[342644754,1732024246320,-212.325789,0.0001999,2]
[342644757,1732024246330,-151.0,0.0001999,2]
[342644759,1732024246340,-151.0,0.0001999,2]
[342644761,1732024246350,-1634.77414336,0.0002,2]
[342644763,1732024246360,-150.52107366,0.0002,7]
[342644765,1732024246370,-151.0,0.0002,2]
[342644767,1732024246380,-236.493531,0.0002,2]
[342644769,1732024246390,-236.493531,0.0002,2]
[342644771,1732024246400,-151.0,0.0002,2]
[342644773,1732024246410,-151.0,0.0002,2]
[342644775,1732024246419,-383.217252,0.0002,2]
[342644777,1732024246429,-383.217252,0.0002,2]
[342644779,1732024246439,-151.0,0.0002,2]
[342644781,1732024246449,-151.0,0.0002,2]
[342644784,1732024246459,-216.183076,0.0002,2]
[342644786,1732024246469,-216.183076,0.0002,2]
[342644788,1732024246478,-151.0,0.0002,2]
[342644790,1732024246488,-150.0,0.0002,2]
[342644792,1732024246498,-1751.52484,0.0002,2]
[342644794,1732024246508,-1751.52484,0.0002,2]
[342644796,1732024246517,-165.459572,0.00020006,2]
[342644798,1732024246527,-151.0,0.00020006,2]
[342644800,1732024246539,-151.0,0.00020019,2]
[342644802,1732024246548,-151.0,0.00020019,2]
[342644804,1732024246557,-151.0,0.00020019,2]
[342644806,1732024246567,-151.0,0.00020019,2]
[342644808,1732024246576,-151.0,0.00020019,2]
[342644810,1732024246586,-151.0,0.00020019,2]
[342644812,1732024246597,-151.0,0.00020019,2]
[342644814,1732024246606,-151.0,0.00020019,2]
[342644816,1732024246615,-151.0,0.00020019,2]
[342644818,1732024246625,-151.0,0.00020019,2]
[342644820,1732024246634,-151.0,0.00020019,2]
[342644822,1732024246646,-151.0,0.00020019,2]
[342644824,1732024246655,-151.0,0.00020019,2]
[342644826,1732024246665,-151.0,0.00020019,2]
[342644828,1732024246675,-212.325789,0.00020019,2]
[342644831,1732024246684,-212.325789,0.00020019,2]
[342644833,1732024246694,-217.446333,0.00020019,2]
[342644835,1732024246703,-217.446333,0.00020019,2]
[342644837,1732024246713,-151.0,0.00020019,2]
[342644839,1732024246722,-356.62534,0.00020019,2]
[342644841,1732024246732,-356.62534,0.00020019,2]
[342644843,1732024246742,-151.0,0.00020019,2]
[342644845,1732024246751,-151.0,0.00020239,2]
[342644847,1732024246760,-1289.27970828,0.00020377,2]
[342644849,1732024246770,-151.0,0.000204,2]
[342644851,1732024246779,-400.0,0.00020447,2]
[342644853,1732024246791,-151.0,0.00020474,2]
[342644855,1732024246801,-151.0,0.000206,2]
[342644857,1732024246811,-151.0,0.000206,2]
[342644859,1732024246820,-39.71602737,0.000206,2]
[342644862,1732024246833,-111.28397263,0.000206,2]
[342644864,1732024246843,-151.0,0.000206,2]
[342644866,1732024246853,-151.0,0.000206,2]
[342644868,1732024246863,-151.0,0.000206,2]
[342644870,1732024246874,-151.0,0.000206,2]
[342644872,1732024246884,-151.0,0.000206,2]
[342644874,1732024246893,-151.0,0.000206,2]
[342644876,1732024246903,-151.0,0.000206,2]
[342644878,1732024246912,-151.0,0.000206,2]
[342644880,1732024246923,-151.0,0.000206,2]
[342644882,1732024246934,-151.0,0.000206,2]
[342644884,1732024246943,-212.325789,0.000206,2]
[342644886,1732024246954,-212.325789,0.000206,2]
[342644888,1732024246963,-217.446333,0.000206,2]
[342644890,1732024246972,-217.446333,0.000206,2]
[342644892,1732024246982,-301.543532,0.000206,2]
[342644894,1732024246991,-356.62534,0.000206,2]
[342644896,1732024247001,-356.62534,0.000206,2]
[342644898,1732024247010,-151.0,0.000206,2]
[342644900,1732024247020,-151.0,0.00020618,2]
[342644902,1732024247030,-151.0,0.00020677,2]
[342644904,1732024247042,-151.0,0.0002075,2]
[342644906,1732024247051,-151.0,0.00020795,2]
[342644908,1732024247061,-152.572751,0.00020795,2]
[342644910,1732024247070,-151.0,0.00020795,2]
[342644912,1732024247079,-217.446333,0.00020795,2]
[342644914,1732024247089,-217.446333,0.00020795,2]
[342644916,1732024247098,-356.62534,0.00020795,2]
[342644918,1732024247107,-356.62534,0.00020795,2]
[342644920,1732024247116,-352.79725962,0.00020795,2]
[342644923,1732024247128,-239.90479438,0.00020795,2]
[342644925,1732024247138,-592.702054,0.00020795,2]
[342644927,1732024247147,-151.0,0.00020795,2]
[342644929,1732024247157,-151.0,0.00020872,2]
[342644931,1732024247166,-151.0,0.00020872,2]
[342644933,1732024247176,-151.0,0.00020872,2]
[342644935,1732024247185,-185.0967,0.00020872,2]
[342644937,1732024247197,-151.0,0.00020872,2]
[342644939,1732024247207,-151.12248987,0.00020971,2]
[342644941,1732024247216,-173.227607,0.00020972,2]
[342644943,1732024247225,-151.0,0.00020972,2]
[342644945,1732024247235,-151.0,0.00020972,2]
[342644947,1732024247244,-151.0,0.00020972,2]
[342644949,1732024247253,-151.0,0.00020972,2]
[342644951,1732024247264,-151.0,0.00020972,2]
[342644953,1732024247274,-151.0,0.00020972,2]
[342644955,1732024247284,-151.0,0.00020972,2]
[342644957,1732024247295,-151.0,0.00020972,2]
[342644959,1732024247304,-151.0,0.00020972,2]
[342644961,1732024247313,-212.325789,0.00020972,2]
[342644963,1732024247323,-212.325789,0.00020972,2]
[342644965,1732024247332,-217.446333,0.00020972,2]
[342644967,1732024247341,-217.446333,0.00020972,2]
[342644969,1732024247351,-356.62534,0.00020972,2]
[342644971,1732024247360,-356.62534,0.00020972,2]
[342644974,1732024247370,-151.0,0.00020972,2]
[342644976,1732024247379,-467.74212,0.00020972,2]
[342644978,1732024247394,-358.916214,0.00020972,2]
[342644980,1732024247404,-358.916214,0.00020972,2]
[342644982,1732024247413,-151.0,0.00020972,2]
[342644984,1732024247422,-601.122178,0.00020972,2]
[342644986,1732024247431,-601.122178,0.00020972,2]
[342644988,1732024247441,-1059.620047,0.00020972,2]
[342644990,1732024247450,-1059.620047,0.00020972,2]
[342644992,1732024247459,-1159.566634,0.00020972,2]
[342644994,1732024247469,-1159.566634,0.00020972,2]
[342644996,1732024247478,-151.0,0.00020972,2]
[342644998,1732024247489,-270.938178,0.00020972,2]
[342645001,1732024247499,-236.493531,0.00020972,2]
[342645003,1732024247509,-270.938178,0.00020972,2]
[342645005,1732024247521,-236.493531,0.00020972,2]
[342645007,1732024247531,-151.0,0.00020972,2]
[342645009,1732024247542,-151.0,0.00020972,2]
[342645011,1732024247550,-383.217252,0.00020972,2]
[342645013,1732024247559,-383.217252,0.00020972,2]
[342645015,1732024247569,-151.0,0.00020972,2]
[342645017,1732024247578,-151.0,0.00020972,2]
[342645019,1732024247587,-216.183076,0.00020972,2]
[342645021,1732024247596,-216.183076,0.00020972,2]
[342645023,1732024247606,-151.0,0.00020972,2]
[342645025,1732024247615,-1751.52484,0.00020972,2]
[342645027,1732024247624,-1751.52484,0.00020972,2]
[342645029,1732024247633,-36016.5112,0.00021,2]
[342645031,1732024247643,-151.0,0.00021,2]
[342645033,1732024247652,-236.493531,0.00021,2]
[342645035,1732024247661,-236.493531,0.00021,2]
[342645037,1732024247671,-151.0,0.00021,2]
[342645039,1732024247680,-151.0,0.00021,2]
[342645041,1732024247692,-383.217252,0.00021,2]
[342645043,1732024247702,-383.217252,0.00021,2]
[342645045,1732024247712,-151.457061,0.00021,2]
[342645047,1732024247722,-151.0,0.00021,2]
[342645049,1732024247731,-216.183076,0.00021,2]
[342645051,1732024247740,-216.183076,0.00021,2]
[342645053,1732024247749,-151.0,0.00021,2]
[342645055,1732024247759,-1751.52484,0.00021,2]
[342645057,1732024247769,-1751.52484,0.00021,2]
[342645059,1732024247779,-500.0,0.00021028,2]
[342645061,1732024247791,-151.0,0.0002106,2]
[342645063,1732024247800,-217.446333,0.0002106,2]
[342645065,1732024247810,-217.446333,0.0002106,2]
[342645067,1732024247819,-356.62534,0.0002106,2]
[342645069,1732024247828,-356.62534,0.0002106,2]
[342645071,1732024247838,-151.0,0.0002106,2]
[342645073,1732024247847,-151.0,0.0002106,2]
[342645075,1732024247856,-151.0,0.00021063,2]
[342645077,1732024247866,-151.0,0.00021063,2]
[342645079,1732024247875,-151.0,0.00021063,2]
[342645081,1732024247884,-151.0,0.00021063,2]
[342645083,1732024247893,-151.0,0.00021126,2]
[342645085,1732024247903,-587.0,0.00021168,2]
[342645087,1732024247912,-151.0,0.00021283,2]
[342645089,1732024247922,-151.0,0.00021283,2]
[342645091,1732024247931,-151.0,0.00021283,2]
[342645093,1732024247940,-212.325789,0.00021283,2]
[342645095,1732024247950,-212.325789,0.00021283,2]
[342645097,1732024247959,-151.0,0.00021283,2]
[342645099,1732024247969,-151.0,0.00021283,2]
[342645101,1732024247979,-151.0,0.00021283,2]
[342645103,1732024247988,-592.702054,0.00021283,2]
[342645106,1732024247998,-592.702054,0.00021283,2]
[342645108,1732024248007,-151.0,0.00021283,2]
[342645109,1732024248017,-182.073167,0.00021283,2]
[342645111,1732024248027,-182.073167,0.00021283,2]
[342645113,1732024248039,-500.0,0.00021294,2]
[342645115,1732024248050,-469.76182595,0.00021294,2]
[342645117,1732024248060,-157.01289666,0.00021312,2]
[342645119,1732024248070,-500.0,0.00021312,2]
[342645121,1732024248080,-500.0,0.00021319,2]
[342645123,1732024248090,-500.0,0.00021344,2]
[342645125,1732024248100,-500.0,0.00021344,2]
[342645127,1732024248110,-151.0,0.00021361,2]
[342645129,1732024248120,-151.0,0.00021361,2]
[342645131,1732024248130,-151.0,0.00021361,2]
[342645133,1732024248139,-151.0,0.00021361,2]
[342645135,1732024248148,-151.0,0.00021361,2]
[342645137,1732024248157,-151.0,0.00021361,2]
[342645139,1732024248167,-151.0,0.00021361,2]
[342645141,1732024248176,-217.446333,0.00021361,2]
[342645143,1732024248188,-217.446333,0.00021361,2]
[342645145,1732024248198,-151.0,0.00021361,2]
[342645147,1732024248207,-151.0,0.00021361,2]
[342645149,1732024248217,-356.62534,0.00021361,2]
[342645151,1732024248227,-356.62534,0.00021361,2]
[342645153,1732024248236,-467.74212,0.00021361,2]
[342645155,1732024248245,-3434.273837,0.00021361,2]
[342645157,1732024248255,-3434.273837,0.00021361,2]
[342645159,1732024248265,-151.0,0.00021361,2]
[342645161,1732024248275,-236.493531,0.0002137,2]
[342645163,1732024248284,-236.493531,0.0002137,2]
[342645165,1732024248296,-383.217252,0.0002137,2]
[342645167,1732024248306,-383.217252,0.0002137,2]
[342645169,1732024248315,-216.183076,0.0002137,2]
[342645171,1732024248324,-216.183076,0.0002137,2]
[342645173,1732024248333,-151.0,0.0002137,2]
[342645175,1732024248342,-1751.52484,0.0002137,2]
[342645177,1732024248351,-1751.52484,0.0002137,2]
[342645179,1732024248361,-500.0,0.0002139,2]
[342645181,1732024248370,-587.0,0.00021504,2]
[342645183,1732024248380,-150.01,0.00021536,2]
[342645185,1732024248389,-5439.33660747,0.00021536,2]
[342645187,1732024248399,-358.916214,0.00021536,2]
[342645189,1732024248408,-358.916214,0.00021536,2]
[342645191,1732024248417,-151.0,0.00021536,2]
[342645193,1732024248426,-601.122178,0.00021536,2]
[342645195,1732024248435,-601.122178,0.00021536,2]
[342645197,1732024248445,-1059.620047,0.00021536,2]
[342645199,1732024248455,-1059.620047,0.00021536,2]
[342645201,1732024248464,-1159.566634,0.00021536,2]
[342645203,1732024248473,-1159.566634,0.00021536,2]
[342645204,1732024248483,-151.0,0.00021536,2]
[342645206,1732024248492,-270.938178,0.00021536,2]
[342645208,1732024248505,-270.938178,0.00021536,2]
[342645210,1732024248514,-151.0,0.00021536,2]
[342645212,1732024248524,-151.0,0.00021578,2]
[342645214,1732024248534,-151.0,0.00021578,2]
[342645217,1732024248546,-158.024142,0.00021578,2]
[342645218,1732024248556,-212.325789,0.00021578,2]
[342645220,1732024248566,-212.325789,0.00021578,2]
[342645222,1732024248575,-151.0,0.00021578,2]
[342645224,1732024248585,-172.335912,0.00021578,2]
[342645226,1732024248595,-182.073167,0.00021578,2]
[342645228,1732024248605,-182.073167,0.00021578,2]
[342645230,1732024248615,-151.0,0.00021655,2]
[342645232,1732024248625,-2339.21747252,0.00021796,2]
[342645234,1732024248636,-592.702054,0.00021817,2]
[342645236,1732024248645,-592.702054,0.00021817,2]
[342645238,1732024248655,-151.0,0.00021817,2]
[342645240,1732024248665,-624.63521225,0.00021842,2]
[342645242,1732024248674,-1000.0,0.0002186,2]
[342645244,1732024248684,-151.0,0.00021896,2]
[342645246,1732024248693,-216.183076,0.00021896,2]
[342645248,1732024248702,-216.183076,0.00021896,2]
[342645250,1732024248712,-151.0,0.00021896,2]
[342645252,1732024248721,-1751.52484,0.00021896,2]
[342645254,1732024248731,-1751.52484,0.00021896,2]
[342645256,1732024248741,-150.0,0.00021896,2]
[342645258,1732024248750,-530.0,0.00021896,2]
[342645260,1732024248759,-1110.0,0.00021896,2]
[342645262,1732024248768,-2384.0,0.00021896,2]
[342645264,1732024248778,-151.0,0.00021916,2]
[342645266,1732024248791,-246.542836,0.00021916,2]
[342645268,1732024248801,-246.542836,0.00021916,2]
[342645270,1732024248811,-229.77001,0.00021916,2]
[342645272,1732024248821,-229.77001,0.00021916,2]
[342645274,1732024248834,-236.493531,0.00021916,2]
[342645276,1732024248843,-236.493531,0.00021916,2]
[342645278,1732024248853,-383.217252,0.00021916,2]
[342645280,1732024248862,-383.217252,0.00021916,2]
[342645282,1732024248871,-42700.10546525,0.00021917,2]
[342645284,1732024248881,-992.86551028,0.00021917,2]
[342645286,1732024248890,-151.0,0.00021917,2]
[342645288,1732024248900,-151.0,0.00021917,2]
[342645290,1732024248910,-151.0,0.00021917,2]
[342645292,1732024248919,-151.0,0.00021917,2]
[342645294,1732024248929,-151.0,0.00021917,2]
[342645296,1732024248938,-151.0,0.00021917,2]
[342645298,1732024248947,-151.0,0.00021917,2]
[342645300,1732024248956,-296.596672,0.00021917,2]
[342645302,1732024248966,-151.0,0.00021917,2]
[342645315,1732024249092,-151.0,0.00021917,2]
[342645317,1732024249102,-151.0,0.00021917,2]
[342645319,1732024249112,-151.0,0.00021917,2]
[342645321,1732024249121,-151.0,0.00021917,2]
[342645323,1732024249131,-292.361566,0.00021917,2]
[342645325,1732024249140,-151.0,0.00021917,2]
[342645327,1732024249150,-151.0,0.00021917,2]
[342645329,1732024249160,-212.325789,0.00021917,2]
[342645331,1732024249170,-212.325789,0.00021917,2]
[342645333,1732024249180,-212.325789,0.00021917,2]
[342645335,1732024249193,-212.325785,0.00021917,2]
[342645337,1732024249203,-151.0,0.00021917,2]
[342645339,1732024249212,-151.0,0.00021917,2]
[342645341,1732024249222,-151.0,0.00021917,2]
[342645343,1732024249232,-151.0,0.00021917,2]
[342645345,1732024249242,-151.0,0.00021917,2]
[342645347,1732024249251,-214.362736,0.00021917,2]
[342645349,1732024249262,-217.446333,0.00021917,2]
[342645351,1732024249272,-217.446333,0.00021917,2]
[342645353,1732024249282,-217.446333,0.00021917,2]
[342645355,1732024249296,-217.446333,0.00021917,2]
[342645356,1732024249306,-217.446333,0.00021917,2]
[342645358,1732024249315,-217.44634,0.00021917,2]
[342645360,1732024249327,-151.0,0.00021917,2]
[342645362,1732024249336,-155.802659,0.00021917,2]
[342645364,1732024249345,-151.0,0.00021917,2]
[342645366,1732024249354,-151.0,0.00021917,2]
[342645368,1732024249364,-151.0,0.00021917,2]
[342645370,1732024249373,-151.0,0.00021917,2]
[342645372,1732024249382,-151.0,0.00021917,2]
[342645374,1732024249392,-151.0,0.00021917,2]
[342645376,1732024249401,-246.542836,0.00021917,2]
[342645378,1732024249410,-246.542836,0.00021917,2]
[342645380,1732024249419,-246.542836,0.00021917,2]
[342645382,1732024249428,-356.62534,0.00021917,2]
[342645384,1732024249437,-246.542836,0.00021917,2]
[342645386,1732024249446,-356.62534,0.00021917,2]
[342645387,1732024249456,-246.542836,0.00021917,2]
[342645389,1732024249466,-356.62534,0.00021917,2]
[342645391,1732024249475,-246.542836,0.00021917,2]
[342645393,1732024249485,-356.62534,0.00021917,2]
[342645395,1732024249495,-356.62534,0.00021917,2]
[342645397,1732024249504,-356.62534,0.00021917,2]
[342645399,1732024249513,-229.77001,0.00021917,2]
[342645401,1732024249523,-229.77001,0.00021917,2]
[342645403,1732024249533,-229.77001,0.00021917,2]
[342645405,1732024249545,-229.77001,0.00021917,2]
[342645407,1732024249555,-229.77001,0.00021917,2]
[342645409,1732024249564,-151.0,0.00021917,2]
[342645411,1732024249573,-151.0,0.00021917,2]
[342645413,1732024249585,-229.77001,0.00021917,2]
[342645415,1732024249595,-467.74212,0.00021917,2]
[342645417,1732024249604,-467.74212,0.00021917,2]
[342645419,1732024249614,-467.74212,0.00021917,2]
[342645421,1732024249624,-592.702054,0.00021917,2]
[342645423,1732024249634,-592.702054,0.00021917,2]
[342645425,1732024249643,-592.702054,0.00021917,2]
[342645427,1732024249652,-592.702054,0.00021917,2]
[342645429,1732024249662,-592.702054,0.00021917,2]
[342645431,1732024249671,-592.702054,0.00021917,2]
[342645433,1732024249681,-358.916214,0.00021917,2]
[342645435,1732024249690,-358.916214,0.00021917,2]
[342645437,1732024249700,-358.916214,0.00021917,2]
[342645439,1732024249709,-358.916214,0.00021917,2]
[342645441,1732024249719,-358.916214,0.00021917,2]
[342645443,1732024249728,-358.916214,0.00021917,2]
[342645445,1732024249738,-3434.273837,0.00021917,2]
[342645447,1732024249748,-3434.273837,0.00021917,2]
[342645449,1732024249757,-3434.273837,0.00021917,2]
[342645450,1732024249766,-3434.273837,0.00021917,2]
[342645452,1732024249776,-3434.273837,0.00021917,2]
[342645454,1732024249786,-3434.273837,0.00021917,2]
[342645456,1732024249796,-151.0,0.00021917,2]
[342645459,1732024249805,-151.0,0.00021917,2]
[342645460,1732024249815,-211.501363,0.00021917,2]
[342645462,1732024249824,-151.0,0.00021917,2]
[342645464,1732024249833,-151.0,0.00021917,2]
[342645465,1732024249843,-151.0,0.00021917,2]
[342645466,1732024249852,-601.122178,0.00021917,2]
[342645467,1732024249862,-601.122178,0.00021917,2]
[342645468,1732024249871,-601.122178,0.00021917,2]
[342645469,1732024249882,-601.122178,0.00021917,2]
[342645470,1732024249891,-601.122178,0.00021917,2]
[342645471,1732024249900,-601.122178,0.00021917,2]
[342645472,1732024249910,-1059.620047,0.00021917,2]
[342645473,1732024249920,-1059.620047,0.00021917,2]
[342645474,1732024249929,-1059.620047,0.00021917,2]
[342645475,1732024249939,-1059.620047,0.00021917,2]
[342645476,1732024249949,-1059.620047,0.00021917,2]
[342645477,1732024249959,-1059.620047,0.00021917,2]
[342645478,1732024249968,-182.073167,0.00021917,2]
[342645479,1732024249978,-182.073167,0.00021917,2]
[342645480,1732024249987,-182.073167,0.00021917,2]
[342645481,1732024249996,-182.073167,0.00021917,2]
[342645482,1732024250006,-182.073167,0.00021917,2]
[342645483,1732024250015,-182.073167,0.00021917,2]
[342645484,1732024250025,-182.073167,0.00021917,2]
[342645485,1732024250034,-182.073167,0.00021917,2]
[342645486,1732024250046,-1159.566634,0.00021917,2]
[342645487,1732024250055,-1159.566634,0.00021917,2]
[342645489,1732024250065,-1159.566634,0.00021917,2]
[342645491,1732024250074,-1159.566634,0.00021917,2]
[342645493,1732024250084,-1159.566634,0.00021917,2]
[342645495,1732024250094,-1159.566634,0.00021917,2]
[342645496,1732024250103,-151.0,0.00021917,2]
[342645498,1732024250112,-151.0,0.00021917,2]
[342645500,1732024250122,-157.95812,0.00021917,2]
[342645502,1732024250132,-270.938178,0.00021917,2]
[342645504,1732024250141,-270.938178,0.00021917,2]
[342645506,1732024250150,-270.938178,0.00021917,2]
[342645508,1732024250160,-236.493531,0.00021917,2]
[342645510,1732024250169,-270.938178,0.00021917,2]
[342645512,1732024250179,-236.493531,0.00021917,2]
[342645515,1732024250194,-270.938178,0.00021917,2]
[342645516,1732024250203,-270.938178,0.00021917,2]
[342645518,1732024250212,-236.493531,0.00021917,2]
[342645520,1732024250221,-236.493531,0.00021917,2]
[342645522,1732024250231,-236.493531,0.00021917,2]
[342645524,1732024250240,-236.493531,0.00021917,2]
[342645526,1732024250250,-236.493531,0.00021917,2]
[342645528,1732024250259,-236.493531,0.00021917,2]
[342645530,1732024250270,-151.0,0.00021917,2]
[342645532,1732024250279,-151.0,0.00021917,2]
[342645534,1732024250291,-299.43702,0.00021917,2]
[342645536,1732024250300,-151.0,0.00021917,2]
[342645538,1732024250310,-151.0,0.00021917,2]
[342645540,1732024250319,-151.0,0.00021917,2]
[342645542,1732024250330,-151.0,0.00021917,2]
[342645544,1732024250339,-152.552553,0.00021917,2]
[342645546,1732024250348,-383.217252,0.00021917,2]
[342645548,1732024250357,-383.217252,0.00021917,2]
[342645550,1732024250366,-383.217252,0.00021917,2]
[342645552,1732024250376,-383.217252,0.00021917,2]
[342645554,1732024250385,-383.217252,0.00021917,2]
[342645556,1732024250395,-383.217252,0.00021917,2]
[342645558,1732024250404,-383.217252,0.00021917,2]
[342645560,1732024250413,-383.217252,0.00021917,2]
[342645562,1732024250423,-151.0,0.00021917,2]
[342645564,1732024250432,-288.587169,0.00021917,2]
[342645566,1732024250442,-216.183076,0.00021917,2]
[342645568,1732024250451,-216.183076,0.00021917,2]
[342645570,1732024250460,-216.183076,0.00021917,2]
[342645572,1732024250470,-216.183076,0.00021917,2]
[342645574,1732024250479,-216.183076,0.00021917,2]
[342645576,1732024250489,-216.183076,0.00021917,2]
[342645578,1732024250498,-216.183076,0.00021917,2]
[342645580,1732024250507,-216.183076,0.00021917,2]
[342645582,1732024250516,-216.183076,0.00021917,2]
[342645584,1732024250526,-216.183086,0.00021917,2]
[342645586,1732024250535,-151.0,0.00021917,2]
[342645588,1732024250546,-152.666189,0.00021917,2]
[342645590,1732024250555,-5000.0,0.00021917,2]
[342645592,1732024250566,-5000.0,0.00021917,2]
[342645594,1732024250575,-5000.0,0.00021917,2]
[342645596,1732024250585,-5000.0,0.00021917,2]
[342645598,1732024250596,-5000.0,0.00021917,2]
[342645600,1732024250605,-5000.0,0.00021917,2]
[342645602,1732024250614,-5000.0,0.00021917,2]
[342645604,1732024250624,-4516.06206765,0.00021917,2]
[342645606,1732024250633,-1751.52484,0.00021917,2]
[342645608,1732024250643,-1751.52484,0.00021917,2]
[342645610,1732024250652,-1751.52484,0.00021917,2]
[342645612,1732024250662,-1751.52484,0.00021917,2]
[342645614,1732024250672,-1751.52484,0.00021917,2]
[342645616,1732024250682,-1751.52484,0.00021917,2]
[342645618,1732024250691,-1751.52484,0.00021917,2]
[342645620,1732024250701,-1751.52484,0.00021917,2]
[342645622,1732024250710,-1751.52484,0.00021917,2]
[342645624,1732024250719,-1751.524837,0.00021917,2]
[342645626,1732024250729,-358.916214,0.00021941,7]
[342645628,1732024250739,-358.916214,0.00021941,7]
[342645630,1732024250748,-601.122178,0.00021941,7]
[342645632,1732024250757,-601.122178,0.00021941,7]
[342645634,1732024250767,-1159.566634,0.00021941,7]
[342645636,1732024250776,-1159.566634,0.00021941,7]
[342645638,1732024250786,-270.938178,0.00021941,7]